Cogmind - Beta 11 X8 @@@ ROGUE MODE // 2021.12.13 @ 17:09:40 Player: btmk16 Result: Destroyed by S-27 Virus with Autogun Performance ------------- Evolutions (3) 1500 Regions Visited (8) 1600 Robots Destroyed (70) 350 Value Destroyed (2079) 2079 Prototype IDs (7) 140 Alien Tech Used (0) 0 Bonus (461) 461 TOTAL SCORE: 6130 Bonus ------- Follower Combat Kills 97 Met Imprinter 300 Was Imprinted 300 Friendly Fire -236 Cogmind --------- Core Integrity 0/700 Matter 270/300 Energy 290/290 System Corruption 0% Temperature Cool (0) Movement Treading (160) Location -6/Proximity Caves Parts ------- > --- POWER (1) -------- Improved Deuterium Engine > --- PROPULSION (4) --- Light Treads Improved Treads Medium Treads > --- UTILITY (4) ------ Reflective Plating Heart of Steel > --- WEAPON (4) ------- Heavy Battle Rifle Heavy Battle Rifle Mini Grenade Launcher Katana > --- INVENTORY (5) ---- RU-N14's Throwing Claymores RU-N14's Throwing Claymores RU-N14's Throwing Claymores RU-N14's Throwing Claymores GAL Module Peak State ------------ > --- POWER ------------ Improved Deuterium Engine > --- PROPULSION ------- Light Treads Advanced Treads Medium Treads Compact Wheel > --- UTILITY ---------- Large Storage Unit Heart of Steel > --- WEAPON ----------- Beamcaster Enhanced Autogun Heavy Battle Rifle Heavy Battle Rifle > --- INVENTORY -------- Advanced Visual Processing Unit Hardened Light Armor Plating Hardened Light Armor Plating Hardened Light Armor Plating Hardened Light Armor Plating Hacking Suite Hacking Suite Force Rifle Heavy Assault Rifle Shotgun Improved Assault Rifle High-powered Shotgun Heavy Battle Rifle Gauss Cannon Katana [Rating: 59] Favorites ----------- Power Improved Deuterium Engine Engine Improved Deuterium Engine Power Core Nuclear Core Propulsion Improved Treads Treads Improved Treads Leg Aluminum Leg Wheel Compact Wheel Flight Unit Improved VTOL Module Utility Large Storage Unit Device Heart of Steel Storage Large Storage Unit Protection Hardened Medium Armor Plating Weapon Heavy Particle Gun Energy Gun Heavy Particle Gun Ballistic Gun Improved Assault Rifle Ballistic Cannon Gauss Cannon Launcher Mini Grenade Launcher Slashing Weapon Katana Build | -11 -10 -9 -8 -7 -7 -7 -7 -6 ------- Run | Scr Mat Mat Mat Fac Low Low Zio Pro Slots Evolved 6 | . . 2 2 2 . . . . Power . | . . . . . . . . . Propulsion 2 | . . . 1 1 . . . . Utility 2 | . . . 1 1 . . . . Weapon 2 | . . 2 . . . . . . Parts Attached 83 | . 12 21 10 9 4 19 8 . Power 9 | . 3 1 1 1 . 2 1 . Engine 8 | . 3 1 . 1 . 2 1 . Core 1 | . . . 1 . . . . . Reactor . | . . . . . . . . . Propulsion 20 | . 4 7 3 1 . 4 1 . Treads 15 | . 2 6 2 . . 4 1 . Leg . | . . . . . . . . . Wheel 4 | . 2 . 1 1 . . . . Hover . | . . . . . . . . . Flight 1 | . . 1 . . . . . . Utility 17 | . 3 1 1 3 1 7 1 . Device 7 | . . 1 1 2 . 2 1 . Storage 3 | . 3 . . . . . . . Processor . | . . . . . . . . . Hackware . | . . . . . . . . . Protection 7 | . . . . 1 1 5 . . Artifact . | . . . . . . . . . Weapon 37 | . 2 12 5 4 3 6 5 . Energy Gun 9 | . . 1 4 1 2 1 . . Energy Cannon . | . . . . . . . . . Ballistic Gun 22 | . 2 11 1 1 1 3 3 . Ballistic Cannon 2 | . . . . 1 . 1 . . Launcher 1 | . . . . . . . 1 . Special Weapon . | . . . . . . . . . Impact Weapon . | . . . . . . . . . Slashing Weapon 3 | . . . . 1 . 1 1 . Piercing Weapon . | . . . . . . . . . Special Melee Weapon . | . . . . . . . . . Unidentified Prototypes 7 | . . 3 2 1 . 1 . . Parts Lost 17 | . 2 . . 1 . 14 . . Power 3 | . 2 . . . . 1 . . Propulsion 5 | . . . . 1 . 4 . . Utility 3 | . . . . . . 3 . . Weapon 6 | . . . . . . 6 . . Highest Loss Streak 14 | . 1 . . 1 . 14 . . Average Slot Usage (%) 85 | . 99 96 99 97 92 74 60 76 Engine 7 | . 13 11 4 6 7 6 7 7 Treads 17 | . 4 21 25 22 15 15 17 23 Leg 2 | . 19 . . . . . . . Wheel 3 | . 4 . 1 5 7 6 . . Device 9 | . . 7 18 15 15 7 7 7 Storage 8 | . 27 14 9 7 7 6 . . Protection 4 | . . . . 7 7 2 7 7 Energy Gun 7 | . . 2 10 15 15 7 . . Ballistic Gun 17 | . 28 38 25 14 13 13 8 15 Slashing Weapon 2 | . . . . . . 4 6 7 Naked Turns 58 | . . . . . . 58 . . Heaviest Build 60 | 11 33 41 43 58 60 56 35 35 Greatest Support 71 | 20 40 46 68 68 16 70 71 71 Greatest Overweight (x) 4 | . 1 1 4 3 3 3 . . Average Overweight (x) 1 | . . . . 2 3 2 . . Largest Inventory Capacity 15 | . 15 15 15 15 15 15 5 5 Average Capacity 12 | . 10 15 15 15 15 13 5 5 Most Carried 15 | . 15 15 15 15 15 15 5 5 Average Carried 11 | . 9 14 14 14 14 12 3 5 Final Capacity 15 | 8 15 15 15 15 15 5 5 5 Final Carried 15 | 6 15 15 15 15 15 5 5 5 Class Distribution -------------------- 39% | Mutant 32% | Tank 11% | Skirmisher 8% | Gunner 4% | Derelict-Tank 3% | Scavenger-Mutant Dominant Class ---------------- Mutant | -10/Materials Gunner | -9/Materials Skirmisher | -8/Materials Tank | -7/Factory Tank | -7/Lower Caves Mutant | -7/Lower Caves Mutant | -7/Zion Derelict-Mutant | -6/Proximity Caves Resources | -11 -10 -9 -8 -7 -7 -7 -7 -6 ----------- Run | Scr Mat Mat Mat Fac Low Low Zio Pro Matter Collected 2873 | 200 349 485 602 292 151 474 181 139 Remotely . | . . . . . . . . . Salvage Created 2946 | . 643 509 853 329 82 491 . 39 Parts 164 | . 50 32 47 20 3 12 . . Haulers Intercepted 6 | . 2 2 2 . . . . . Recyclers Shooed . | . . . . . . . . . Parts Field Recycled . | . . . . . . . . . Retrieved Matter . | . . . . . . . . . Parts Self-Destructed 31 | . . . . . 10 14 4 3 Prevented 2 | . . . . . . . . 2 Kills | -11 -10 -9 -8 -7 -7 -7 -7 -6 ------- Run | Scr Mat Mat Mat Fac Low Low Zio Pro Combat Hostiles Destroyed 51 | . 13 8 15 8 4 3 . . Guns 50 | . 13 8 15 8 3 3 . . Cannons 1 | . . . . . 1 . . . Classes Destroyed 12 | . 5 4 1 1 . 1 . . Worker 5 | . 3 . 1 1 . . . . Hauler 6 | . 2 2 2 . . . . . Recycler 2 | . . 1 1 . . . . . Operator 2 | . 1 . 1 . . . . . Watcher 3 | . . 1 1 1 . . . . Swarmer 14 | . 3 . 3 4 4 . . . Grunt 23 | . 10 3 9 . . 1 . . Brawler 2 | . . . 1 . . 1 . . Duelist 3 | . . 2 . . . 1 . . Sentry 6 | . . 3 2 1 . . . . Programmer 3 | . . . . 3 . . . . Samaritan 2 | . . . . . . 1 . 1 Savage 1 | . . . . . . 1 . . Best Kill Streak 5 | . 3 3 5 5 4 2 . . Combat Bots Only 4 | . 3 3 3 4 4 2 . . Max Kills in Single Turn 2 | . 2 2 2 2 1 1 . 1 Gunslinging 1 | . 1 . . . . . . . Exploded . | . . . . . . . . . Melee . | . . . . . . . . . Uniques/NPCs Destroyed . | . . . . . . . . . Combat | -11 -10 -9 -8 -7 -7 -7 -7 -6 -------- Run | Scr Mat Mat Mat Fac Low Low Zio Pro Damage Taken 4435 | . 471 300 569 559 320 2198 . 18 Core 928 | . 68 72 71 71 16 612 . 18 Absorbed by Shields . | . . . . . . . . . Core Remaining (%) 85 | 100 72 82 87 . . . . . Volleys Fired 174 | . 68 23 41 23 7 12 . . Largest 4 | . 2 4 4 4 4 4 . . Hottest 208 | . 46 125 126 208 208 166 . . Shots Fired 533 | . 136 85 164 91 28 29 . . Gun 521 | . 136 85 164 87 21 28 . . Cannon 12 | . . . . 4 7 1 . . Launcher . | . . . . . . . . . Special . | . . . . . . . . . Kinetic 423 | . 136 82 123 45 14 23 . . Thermal 110 | . . 3 41 46 14 6 . . Explosive . | . . . . . . . . . Electromagnetic . | . . . . . . . . . Robot Hit Streak 18 | . 8 18 14 10 4 6 . . Robot Miss Streak 6 | . 4 2 4 3 6 3 . . Penetration Max . | . . . . . . . . . Secondary Targets 10 | . 2 1 4 2 . 1 . . Max Gunslinging Chain 1 | . 1 1 1 1 . 1 . . Shots Hit Robots 342 | . 85 60 96 57 12 29 . 3 Core Hits 129 | . 32 20 40 17 7 12 . 1 Critical Kills 1 | . 1 . . . . . . . Critical Parts Destroyed 2 | . 1 . 1 . . . . . Critical Strikes 5 | . 2 . 2 1 . . . . Burn 1 | . . . 1 . . . . . Destroy 3 | . 2 . 1 . . . . . Blast 1 | . . . . 1 . . . . Melee Attacks 15 | . . . . 1 . 11 . 3 Impact . | . . . . . . . . . Slashing 15 | . . . . 1 . 11 . 3 Piercing . | . . . . . . . . . Sneak Attacks 7 | . . . . . . 4 . 3 Combat Hostiles . | . . . . . . . . . Follow-up Attacks . | . . . . . . . . . Damage Inflicted 6752 | . 1008 923 1620 1261 272 1391 . 277 Guns 5256 | . 1008 923 1620 1030 242 433 . . Cannons 135 | . . . . 77 30 28 . . Explosions 154 | . . . . 154 . . . . Melee 1207 | . . . . . . 930 . 277 Ramming . | . . . . . . . . . Kinetic 4038 | . 1008 891 1141 553 69 376 . . Thermal 1507 | . . 32 479 708 203 85 . . Explosive . | . . . . . . . . . Electromagnetic . | . . . . . . . . . Impact . | . . . . . . . . . Slashing 1207 | . . . . . . 930 . 277 Piercing . | . . . . . . . . . Highest Corruption 3 | . . 2 2 3 3 3 3 . Average Corruption 2 | . . 2 2 2 3 3 3 . Corruption Purged . | . . . . . . . . . Effects 60 | . . 2 5 22 6 21 4 . Message Errors 18 | . . 1 2 6 . 5 4 . Matter Fused 16 | . . . . 6 4 6 . . Heat Flow Errors 3 | . . . . . 1 2 . . Energy Discharges 13 | . . 1 2 4 1 5 . . Data Loss (minor) 9 | . . . 1 5 . 3 . . Weapon Failures 1 | . . . . 1 . . . . Overload Shots . | . . . . . . . . . Overflow Damage 675 | . . . . 84 . 432 . 159 Projectiles . | . . . . . . . . . Explosions 84 | . . . . 84 . . . . Melee 591 | . . . . . . 432 . 159 Knockbacks . | . . . . . . . . . Impact . | . . . . . . . . . Kinetic . | . . . . . . . . . Secondary . | . . . . . . . . . Self-Inflicted Damage 55 | . . . . 55 . . . . Shots 1 | . . . . 1 . . . . Rammed . | . . . . . . . . . Targets Rammed . | . . . . . . . . . Kicked . | . . . . . . . . . Crushed . | . . . . . . . . . Highest Temperature 758 | . 38 234 21 197 371 758 . . Average Temperature 140 | . 11 69 5 43 183 389 . . Received Heat Transfer 1341 | . 210 81 261 42 . 747 . . Effects 25 | . . . . . 1 24 . . Shutdowns 3 | . . . . . . 3 . . Energy Bleed 4 | . . . . . . 4 . . Interference 6 | . . . . . 1 5 . . Matter Decay 2 | . . . . . . 2 . . Short Circuit 2 | . . . . . . 2 . . Damage (minor) 1 | . . . . . . 1 . . Damage (major) 5 | . . . . . . 5 . . Damage (core) 2 | . . . . . . 2 . . Siege Activations . | . . . . . . . . . Robots Corrupted . | . . . . . . . . . Combat Hostiles . | . . . . . . . . . Parts Fried . | . . . . . . . . . Impact Corruptions . | . . . . . . . . . Robots Melted . | . . . . . . . . . Combat Hostiles . | . . . . . . . . . Parts Melted 2 | . . . 1 1 . . . . Heat Transferred 2868 | . . 74 1110 1114 422 148 . . Parts Sabotaged . | . . . . . . . . . Parts Stolen . | . . . . . . . . . Parts Stripped . | . . . . . . . . . Power Chain Reactions . | . . . . . . . . . Missiles Intercepted . | . . . . . . . . . Alert | -11 -10 -9 -8 -7 -7 -7 -7 -6 ------- Run | Scr Mat Mat Mat Fac Low Low Zio Pro Peak Influence 410 | . 205 199 410 95 . . . . Initial 61 | . . 35 61 . . . . . Average 79 | . 67 105 154 34 . . . . Maximum Alert Level 2 | . 1 . 2 . . . . . Low Security (%) 94 | . 98 100 74 100 . . . . Level 1 5 | . 1 . 24 . . . . . Level 2 . | . . . 1 . . . . . Level 3 . | . . . . . . . . . Level 4 . | . . . . . . . . . Level 5 . | . . . . . . . . . High Security . | . . . . . . . . . Max Security . | . . . . . . . . . Squads Dispatched 8 | . 3 . 2 2 . 1 . . Investigation 3 | . 2 . 1 . . . . . Extermination 2 | . . . . 2 . . . . Reinforcement 2 | . 1 . 1 . . . . . Assault 1 | . . . . . . 1 . . Garrison . | . . . . . . . . . Intercept . | . . . . . . . . . Construction Impeded . | . . . . . . . . . Haulers Reinforced . | . . . . . . . . . Active Scanning Responses . | . . . . . . . . . Cargo Convoy Interrupts . | . . . . . . . . . Stealth | -11 -10 -9 -8 -7 -7 -7 -7 -6 --------- Run | Scr Mat Mat Mat Fac Low Low Zio Pro Distress Signals 5 | . 2 1 2 . . . . . Communications Jammed . | . . . . . . . . . Distress Signals . | . . . . . . . . . Times Spotted 90 | . 22 11 20 14 4 12 . 7 Peak Tracking Total 10 | . 4 4 6 4 4 10 . 4 Tactical Retreats 4 | . . . . . . 4 . . Traps | -11 -10 -9 -8 -7 -7 -7 -7 -6 ------- Run | Scr Mat Mat Mat Fac Low Low Zio Pro Traps Triggered 4 | . 2 1 1 . . . . . Indirectly . | . . . . . . . . . Trap Hack Attempts . | . . . . . . . . . Triggered . | . . . . . . . . . Disarmed . | . . . . . . . . . Reprogrammed . | . . . . . . . . . Reused . | . . . . . . . . . Traps Extracted . | . . . . . . . . . Installed . | . . . . . . . . . Triggered 1 | . . . . . . 1 . . Machines | -11 -10 -9 -8 -7 -7 -7 -7 -6 ---------- Run | Scr Mat Mat Mat Fac Low Low Zio Pro Machines Disabled 4 | . . 1 1 2 . . . . Max in Single Turn 2 | . . 1 1 2 . . . . Garrison Access 1 | . . . . 1 . . . . Machines Sabotaged . | . . . . . . . . . Garrisons Compromised . | . . . . . . . . . Overloaded Fab Kills . | . . . . . . . . . Hacking | -11 -10 -9 -8 -7 -7 -7 -7 -6 --------- Run | Scr Mat Mat Mat Fac Low Low Zio Pro Machines Accessed 21 | . 5 1 4 6 2 3 . . Terminals 14 | . 5 1 4 4 . . . . Fabricators 1 | . . . . 1 . . . . Repair Stations . | . . . . . . . . . Recycling Units . | . . . . . . . . . Scanalyzers . | . . . . . . . . . Garrison Access 1 | . . . . 1 . . . . Total Hacks 37 | . 8 5 9 10 2 3 . . Successful 23 | . 5 3 6 4 2 3 . . Failed 14 | . 3 2 3 6 . . . . Catastrophic 3 | . . . 1 2 . . . . Database Lockouts . | . . . . . . . . . Manual 15 | . 5 3 2 5 . . . . Terminals 29 | . 8 5 9 7 . . . . Fabricators 1 | . . . . 1 . . . . Repair Stations . | . . . . . . . . . Recycling Units . | . . . . . . . . . Scanalyzers . | . . . . . . . . . Garrison Access 2 | . . . . 2 . . . . Terminal Hacks 19 | . 4 1 6 3 2 3 . . Record 1 | . . . . . . 1 . . Robot Analysis 2 | . 2 . . . . . . . Open Door 4 | . . . . . 2 2 . . Level Access Points 1 | . . . 1 . . . . . Branch Access Points 1 | . . . 1 . . . . . Terminal Index 1 | . 1 . . . . . . . Alert Level 4 | . 1 . 1 2 . . . . Unreport Threat 2 | . . . 2 . . . . . Hauler Manifests 1 | . . 1 . . . . . . Zone Layout 2 | . . . 1 1 . . . . Fabricator Hacks . | . . . . . . . . . Repair Station Hacks . | . . . . . . . . . Recycling Unit Hacks . | . . . . . . . . . Scanalyzer . | . . . . . . . . . Garrison Access Hacks 1 | . . . . 1 . . . . Seal Access 1 | . . . . 1 . . . . Unauthorized Hacks 3 | . 1 2 . . . . . . Terminals 3 | . 1 2 . . . . . . Track 1 | . . 1 . . . . . . Botnet 2 | . 1 1 . . . . . . Fabricators . | . . . . . . . . . Repair Stations . | . . . . . . . . . Recycling Units . | . . . . . . . . . Scanalyzers . | . . . . . . . . . Garrison Access . | . . . . . . . . . Data Cores Recovered . | . . . . . . . . . Used . | . . . . . . . . . Hacking Detections 14 | . 3 1 4 6 . . . . Full Trace Events . | . . . . . . . . . Feedback Events . | . . . . . . . . . Feedback Blocked . | . . . . . . . . . Robot Schematics Acquired . | . . . . . . . . . Robots Built . | . . . . . . . . . Authchips . | . . . . . . . . . Time . | . . . . . . . . . Total Robot Build Rating . | . . . . . . . . . Part Schematics Acquired . | . . . . . . . . . Parts Built . | . . . . . . . . . Authchips . | . . . . . . . . . Time . | . . . . . . . . . Total Part Build Rating . | . . . . . . . . . Parts Repaired . | . . . . . . . . . Time . | . . . . . . . . . Parts Recycled . | . . . . . . . . . Recycled Matter . | . . . . . . . . . Retrieved Matter . | . . . . . . . . . Retrieved Components . | . . . . . . . . . Parts Scanalyzed . | . . . . . . . . . Part Schematics Acquired . | . . . . . . . . . Parts Damaged . | . . . . . . . . . Bothacking | -11 -10 -9 -8 -7 -7 -7 -7 -6 ------------ Run | Scr Mat Mat Mat Fac Low Low Zio Pro Used RIF Installer . | . . . . . . . . . Robots Hacked . | . . . . . . . . . Non-combat . | . . . . . . . . . Combat . | . . . . . . . . . Robot Hacks Applied . | . . . . . . . . . Relay Couplers Released . | . . . . . . . . . Fabnet Peak Effective % . | . . . . . . . . . Robots Rewired . | . . . . . . . . . Allies Hacked . | . . . . . . . . . Hacks Repelled . | . . . . . . . . . Allies | -11 -10 -9 -8 -7 -7 -7 -7 -6 -------- Run | Scr Mat Mat Mat Fac Low Low Zio Pro Total Allies 10 | . . . . . . . 10 . Largest Group 10 | . . . . . . . 10 10 Highest-Rated Group 292 | . . . . . . . 292 292 Highest-Rated Ally 41 | . . . . . . . 41 41 Total Orders . | . . . . . . . . . Ally Attacks 11 | . . . . . . . . 11 Total Damage 248 | . . . . . . . . 248 Kills 3 | . . . . . . . . 3 Allies Corrupted . | . . . . . . . . . Allies Melted . | . . . . . . . . . Intel | -11 -10 -9 -8 -7 -7 -7 -7 -6 ------- Run | Scr Mat Mat Mat Fac Low Low Zio Pro Robot Analysis Total 2 | . 2 . . . . . . . Derelict Logs Recovered 4 | . . . . . 2 2 . . Drone Launches . | . . . . . . . . . Drone Recoveries . | . . . . . . . . . Exploration | -11 -10 -9 -8 -7 -7 -7 -7 -6 ------------- Run | Scr Mat Mat Mat Fac Low Low Zio Pro Turns Passed 7442 | . 988 659 803 1472 719 1185 1562 54 Spaces Moved 4209 | 1 563 303 387 712 463 796 956 28 Core 115 | . . . . . . 115 . . Treads 1951 | . 76 303 334 214 . 40 956 28 Legs 372 | 1 371 . . . . . . . Wheels 1771 | . 116 . 53 498 463 641 . . Hover . | . . . . . . . . . Flight . | . . . . . . . . . Fastest Speed 50 | 120 105 160 140 145 145 50 160 160 Average Speed 147 | 120 127 178 153 148 145 132 160 160 Slowest Speed 240 | 120 190 240 160 155 145 200 160 160 Overloaded Moves . | . . . . . . . . . Propulsion Burnouts . | . . . . . . . . . Robots Hopped 1 | . . . . . 1 . . . Cave-ins Triggered . | . . . . . . . . . Exploration Rate (%) 42 | 1 93 28 28 15 59 65 89 8 Regions Visited 8 Branch Regions 4 Pre-discovered Areas 3 | . . . . . . 1 2 . Known Exits Taken 2 | . . . 1 . 1 . . . Unknown Exits Taken 6 | 1 1 1 . 1 . 1 1 . Scrap Searched 7 | . . . . . 2 2 3 . Spaces Dug 1 | . . . . 1 . . . . Terrain Destroyed 10 | . . . 5 2 3 . . . Melee 1 | . . . . 1 . . . . Projectile 4 | . . . . 1 3 . . . AOE 5 | . . . 5 . . . . . Terrain Rammed . | . . . . . . . . . Walls Destroyed . | . . . . . . . . . Machines Disabled . | . . . . . . . . . Actions | -11 -10 -9 -8 -7 -7 -7 -7 -6 --------- Run | Scr Mat Mat Mat Fac Low Low Zio Pro Total 5091 | . 712 392 495 1080 496 893 990 33 Wait 512 | . 51 11 45 328 17 44 14 2 Move 4199 | . 562 302 386 711 460 795 955 28 Hop 1 | . . . . . 1 . . . Pick Up 37 | . 12 10 3 2 1 1 8 . Fast Attach 23 | . 2 5 5 2 . 7 2 . Attach 18 | . 1 3 2 2 . 6 4 . Detach 3 | . . . 1 1 . 1 . . Swap 42 | . 9 13 3 5 4 6 2 . Drop 67 | . 7 25 9 5 6 10 5 . Fire 174 | . 68 23 41 23 7 12 . . Melee 15 | . . . . 1 . 11 . 3 Ram . | . . . . . . . . . Kick . | . . . . . . . . . Crush . | . . . . . . . . . Escape Stasis . | . . . . . . . . . Rewire . | . . . . . . . . . Trap . | . . . . . . . . . Miscellaneous . | . . . . . . . . . Route ------- -11/Scrapyard -10/Materials (discovered 4 exits: *Mat x3 / [*Min]) -9/Materials -8/Materials (discovered 3 exits: *Fac x3) -7/Factory -7/Lower Caves -7/Lower Caves -7/Zion -6/Proximity Caves History --------- Turn | Location | Event 1 | -11/Scrapyard | Discovered new exit (range 0) 1 | -11/Scrapyard | Entered Materials 280 | -10/Materials | Discovered new exit (range 8) 315 | -10/Materials | Build established: Mutant 427 | -10/Materials | Discovered new exit (range 16) 579 | -10/Materials | Discovered new exit (range 3) 965 | -10/Materials | Discovered new exit (range 15) 989 | -10/Materials | Entered another Materials area 989 | -9/Materials | Evolved 2 slots: Weapon x2 1299 | -9/Materials | Build established: Gunner 1530 | -9/Materials | Discovered new exit (range 5) 1648 | -9/Materials | Entered another Materials area 1648 | -8/Materials | Evolved 2 slots: Propulsion x1, Utility x1 1923 | -8/Materials | Build established: Skirmisher 2164 | -8/Materials | Identified exit to Factory 2451 | -8/Materials | Entered Factory 2451 | -7/Factory | Evolved 2 slots: Propulsion x1, Utility x1 2762 | -7/Factory | Build established: Tank 3776 | -7/Factory | Discovered new exit (range 5) 3923 | -7/Factory | Entered Lower Caves 4251 | -7/Lower Caves | Encountered a Warlord checkpoint 4293 | -7/Lower Caves | Identified exit to Lower Caves 4525 | -7/Lower Caves | Learned location of 1 exit from Factory 4600 | -7/Lower Caves | Found Prototype Device 4642 | -7/Lower Caves | Entered another Lower Caves area 4913 | -7/Lower Caves | Identified Heart of Steel 4947 | -7/Lower Caves | Learned location of Zion (-7) 5200 | -7/Lower Caves | Build established: Mutant 5266 | -7/Lower Caves | Learned Factory stockpile data 5380 | -7/Lower Caves | Discovered new exit (range 5) 5644 | -7/Lower Caves | Attracted the attention of an 0b10 outpost 5681 | -7/Lower Caves | Core integrity fell below 50% 5700 | -7/Lower Caves | Core integrity fell below 20% 5725 | -7/Lower Caves | Lost 14 parts (1p4n3u6w) 5827 | -7/Lower Caves | Entered Zion 5963 | -7/Zion | Discovered new exit (range 15) 6003 | -7/Zion | Found GAL Module 6031 | -7/Zion | System corruption cleaned by Quarantine Array 6193 | -7/Zion | Given A8's code to call for help 6531 | -7/Zion | Learned location of Data Miner (-6) 6608 | -7/Zion | Gained Derelict followers 6661 | -7/Zion | Found Prototype Special Weapon 6664 | -7/Zion | Found Prototype Special Weapon 6667 | -7/Zion | Found Prototype Special Weapon 6669 | -7/Zion | Found Prototype Special Weapon 6840 | -7/Zion | Learned location of Extension (-5) 7014 | -7/Zion | Imprinted 7016 | -7/Zion | Declared Zion's savior 7389 | -7/Zion | Entered Proximity Caves 7389 | -6/Proximity Caves | Accompanied by 10 allies 7403 | -6/Proximity Caves | Build established: Derelict-Tank 7443 | -6/Proximity Caves | Destroyed by S-27 Virus with Autogun Last Messages --------------- 07395_ Corrupted Imp. Heat Sink self-destruct mechanism malfunctions. 07395_ Lgt. Treads fries itself beyond repair. 07398_ Imp. Light Armor Plating fries itself beyond repair. 07399_ VTOL Module fries itself beyond repair. 07399_ Acquired 25 matter. 07401_ Acquired 75 matter. 07405_ Corrupted Flak Gun self-destruct mechanism malfunctions. 07419_ Sneak attack on HY-087(S). 07419_ Destroyed Neutrino Core. 07419_ Destroyed Com. Battery. 07419_ Destroyed Med. Treads. 07419_ Destroyed Com. Battery. 07426_ Sneak attack on HY-087(S). 07426_ Destroyed Com. Battery. 07426_ Destroyed Med. Treads. 07426_ Destroyed Neutrino Core. 07426_ Destroyed Com. Battery. 07428_ Sneak attack on HY-087(S). 07428_ HY-087(S) destroyed. 07431_ Acquired 39 matter. Map ----- +----------------------------------------------------+ | ?????????????????????????????????????????????????? | | ?????????????????????????????????????????????????? | | ?????????????????????????????????????????????????? | | ?????????????????????????????????????????????????? | | ?????????????????????????????????????????????????? | | ?????????????????????????????????????????????????? | | ?????????????????????????????????????????????????? | | ?????????????????????????????????????????????????? | | ?????????????????????????????????????????????????? | | ?????????????????????????????????????????????????? | | ?????????????????????????????????????????????????? | | ?????????????????????????????????????????????????? | | ????????????????? ???????????????????????????????? | | ??????????????? ??????????????????????????????? | | ??????????????? #?????????????????????????????? | | ???????????????? ?????????????????????????????? | | ????????????????? ????????????????????????????? | | ?????????????????? #???????????????????????????? | | ???????????? ??????# ###????????????????????????? | | ???????????? ????# ??????##????????????????? | | ???????????? ### ???### ##### ! ????????? | | ?????????????# ??## s ???????????? | | ??????????????# ### s ??????????????? | | ??????????????# i#?????????????????? | | ??????????????# MM #?????????????????? | | ??????????????# @S l #?????????????????? | | ??????????????# ## s #?????????????????? | | ?????????????# ##### #?????????????????? | | ????????????# ????# #?????????????????? | | ??????????? ???### #?????????????????? | | ???????????? ####??### #####??????### #??? | | ???????????? ??????## #???? #??? | | ???????????? ???????## #### #???? | | ????????????? ????????# #??????? | | ??????????????????????# [ ! #???????? | | ??????????????????????# # ##???????? | | ??????????????????????# % #? ##????????? | | ??????????????????????## #?? #?????????? | | ???????????????????????## ##??? #????????? | | ????????????????????????# ## #????????? | | ????????????????????????# ### #### #????????? | | ????????????????????????####?######??????????????? | | ?????????????????????????????????????????????????? | | ?????????????????????????????????????????????????? | | ?????????????????????????????????????????????????? | | ?????????????????????????????????????????????????? | | ?????????????????????????????????????????????????? | | ?????????????????????????????????????????????????? | | ?????????????????????????????????????????????????? | | ?????????????????????????????????????????????????? | +----------------------------------------------------+ Best States ------------- Heat Dissipation 61 Energy Generation 16 Energy Capacity 415 Matter Stores 300 Matter Capacity 300 Sight Range 16 Terrain Scan Range 16 Terrain Scan Density 10 Armor Coverage 450 Resistance: TH 10 Evasion (%) 55 Recoil Reduction 3 Item Schematics ----------------- None Robot Schematics ------------------ None Fabricated ------------ Nothing Alien Tech Used ----------------- None Achievements -------------- None Challenges ------------ None Game ------ Seed MinesnifferAutogunArchive Manual? 0 Play Time 00:36:44 Cumulative 190.3 hours Start 2021.12.13 @ 16:31:37 End 2021.12.13 @ 17:09:40 Sessions 1 Manual Loads 0 Difficulty Rogue Special Mode None Game No. 259 Rogue 259 Adventurer 0 Explorer 0 Win Type - Total 2 Types 2/0/0/0/0/0/0/0/0 Lore% 61 Gallery% 73 Achievement% 53 Wizard Run 0 Options --------- ASCII 0 Keyboard 1 Movement Vi Keybinds 0 Fullscreen 1 Font 18/SmallcapsGlow Map View 76x50 Tactical HUD 1 Map Filters NONE Filters NONE Steam 1 RUN: 94ac4a73-f4ec-4429-9e1f-12011ce501e0